Cogmind - Beta 11 X8 @@@ ROGUE MODE // 2021.10.23 @ 13:50:49 Player: IceBox Result: Destroyed by Y4-5CX(z) with Makeshift Sword Performance ------------- Evolutions (3) 1500 Regions Visited (11) 2200 Robots Destroyed (52) 260 Value Destroyed (1037) 1037 Prototype IDs (12) 240 Alien Tech Used (0) 0 Bonus (-460) -460 TOTAL SCORE: 4777 Bonus ------- Met Imprinter 300 Friendly Fire -760 Cogmind --------- Core Integrity 0/700 Matter 0/300 Energy 100/100 System Corruption 0% Temperature Cool (0) Movement Core (50) Location -7/Zion Parts ------- > --- POWER (1) -------- (None) > --- PROPULSION (3) --- (None) > --- UTILITY (7) ------ (None) > --- WEAPON (2) ------- (None) > --- INVENTORY (5) ---- Improved Flight Unit Transmission Jammer Reactive Plating Makeshift Hacking Suite Enhanced Autogun Peak State ------------ > --- POWER ------------ Micro Nuclear Core > --- PROPULSION ------- Improved Flight Unit Improved VTOL Module Improved VTOL Module > --- UTILITY ---------- Medium Storage Unit Experimental Sensor Array Improved Signal Interpreter Improved Medium Armor Plating Hacking Suite Hacking Suite Hacking Suite > --- WEAPON ----------- Improved Datajack Chainsword > --- INVENTORY -------- Improved Flight Unit Improved Flight Unit Weight Redist. System Transmission Jammer Reactive Plating Enhanced Autogun Enhanced Autogun Gauss Rifle Gauss Rifle Advanced EMP Blaster [Rating: 51] Favorites ----------- Power Micro Nuclear Core Engine Ion Engine Power Core Micro Nuclear Core Propulsion Improved VTOL Module Treads Light Treads Leg Aluminum Leg Wheel Wheel Flight Unit Improved VTOL Module Utility Hacking Suite Device Weight Redist. System Storage Medium Storage Unit Processor Improved Signal Interpreter Hackware Hacking Suite Protection Hardened Light Armor Plating Weapon Chainsword Energy Gun Electrolaser Ballistic Gun Assault Rifle Launcher Grenade Launcher Special Weapon Flamer Slashing Weapon Chainsword Piercing Weapon Kinetic Spear Special Melee Weapon Improved Datajack Build | -11 -10 -10 -10 -9 -8 -7 -7 -7 -7 -7 -7 ------- Run | Scr Mat Min Exi Min Mat Fac Was Fac Low Low Zio Slots Evolved 6 | . . . . . 4 2 . . . . . Power . | . . . . . . . . . . . . Propulsion 1 | . . . . . 1 . . . . . . Utility 5 | . . . . . 3 2 . . . . . Weapon . | . . . . . . . . . . . . Parts Attached 102 | 2 8 . . 5 26 20 2 12 15 3 9 Power 6 | . 1 . . 1 2 2 . . . . . Engine 3 | . . . . 1 1 1 . . . . . Core 3 | . 1 . . . 1 1 . . . . . Reactor . | . . . . . . . . . . . . Propulsion 17 | 2 3 . . . 7 3 . 1 1 . . Treads 8 | 1 2 . . . 5 . . . . . . Leg . | . . . . . . . . . . . . Wheel 2 | 1 . . . . 1 . . . . . . Hover . | . . . . . . . . . . . . Flight 7 | . 1 . . . 1 3 . 1 1 . . Utility 43 | . 2 . . 4 7 9 . 10 6 . 5 Device 25 | . . . . 2 2 3 . 9 5 . 4 Storage 3 | . 1 . . . . 2 . . . . . Processor 2 | . . . . . 1 1 . . . . . Hackware 3 | . . . . . . 2 . 1 . . . Protection 10 | . 1 . . 2 4 1 . . 1 . 1 Artifact . | . . . . . . . . . . . . Weapon 36 | . 2 . . . 10 6 2 1 8 3 4 Energy Gun 3 | . . . . . 2 . . . . 1 . Energy Cannon . | . . . . . . . . . . . . Ballistic Gun 13 | . 1 . . . 6 2 . . 2 . 2 Ballistic Cannon . | . . . . . . . . . . . . Launcher 7 | . 1 . . . 1 . . . 2 2 1 Special Weapon 1 | . . . . . . . . . . . 1 Impact Weapon . | . . . . . . . . . . . . Slashing Weapon 5 | . . . . . 1 1 1 . 2 . . Piercing Weapon 1 | . . . . . . . 1 . . . . Special Melee Weapon 6 | . . . . . . 3 . 1 2 . . Unidentified Prototypes 10 | . 1 . . 1 5 1 1 . . . 1 Corrupted Parts 1 | . . . . . 1 . . . . . . System Corruption 5 | . . . . . 5 . . . . . . Parts Lost 7 | . . . . . 1 . . . 2 . 4 Power 1 | . . . . . 1 . . . . . . Propulsion 1 | . . . . . . . . . 1 . . Utility 1 | . . . . . . . . . . . 1 Weapon 4 | . . . . . . . . . 1 . 3 Highest Loss Streak 4 | . . . . . 1 . . . 1 . 4 Average Slot Usage (%) 97 | . 99 100 100 100 98 93 100 99 99 93 88 Core 8 | . 12 14 14 10 4 7 7 7 7 7 6 Treads 7 | . 14 14 14 14 20 2 . . . . . Wheel 4 | . 14 14 14 14 6 . . . . . . Flight 13 | . . . . . . 20 23 23 23 23 22 Device 9 | . . . . . 8 13 15 14 14 15 14 Storage 9 | . 14 14 14 14 9 7 7 7 7 7 6 Processor 6 | . . . . . 8 13 15 11 7 7 6 Hackware 11 | . . . . . . 11 15 18 23 23 21 Protection 6 | . 13 14 14 14 18 2 . . . . . Ballistic Gun 8 | . 28 14 14 14 15 1 . . . . . Launcher 1 | . . 14 14 14 1 . . . . . . Slashing Weapon 4 | . . . . . . 6 7 7 6 7 6 Special Melee Weapon 2 | . . . . . . 3 7 7 6 . . Naked Turns 19 | . . . . . . . . . . . 19 Heaviest Build 68 | 12 54 54 54 54 68 65 21 21 32 23 21 Greatest Support 66 | 20 20 10 10 10 66 66 21 21 21 21 21 Greatest Overweight (x) 5 | 1 5 5 5 5 5 1 . . 2 1 . Average Overweight (x) . | . 3 5 5 5 2 . . . . . . Largest Inventory Capacity 20 | 8 20 20 20 20 20 20 10 10 10 10 10 Average Capacity 13 | 8 17 20 20 20 20 11 10 10 10 10 9 Most Carried 20 | 8 17 18 18 20 20 20 10 10 10 10 10 Average Carried 12 | 6 12 17 18 19 19 11 10 9 9 9 9 Final Capacity 20 | 8 20 20 20 20 20 10 10 10 10 10 5 Final Carried 20 | 8 17 18 18 20 20 10 10 10 9 10 5 Class Distribution -------------------- 37% | Hacker-Sprinter 31% | Mutant 17% | Scavenger-Sprinter 12% | Scavenger-Mutant Dominant Class ---------------- Mutant | -10/Materials Mutant | -10/Mines Mutant | -10/Exiles Mutant | -9/Mines Scavenger-Mutant | -8/Materials Scavenger-Sprinter | -7/Factory Scavenger-Sprinter | -7/Waste Scavenger-Sprinter | -7/Factory Hacker-Sprinter | -7/Lower Caves Hacker-Sprinter | -7/Lower Caves Hacker-Sprinter | -7/Zion Resources | -11 -10 -10 -10 -9 -8 -7 -7 -7 -7 -7 -7 ----------- Run | Scr Mat Min Exi Min Mat Fac Was Fac Low Low Zio Matter Collected 1675 | 286 202 41 . . 565 200 . 39 215 68 59 Remotely . | . . . . . . . . . . . . Salvage Created 1608 | 103 377 20 . 11 799 111 . 39 123 . 25 Parts 133 | 11 43 5 . 3 46 10 . 4 8 . 3 Haulers Intercepted 5 | . 1 . . . 4 . . . . . . Recyclers Shooed 2 | 1 1 . . . . . . . . . . Parts Field Recycled . | . . . . . . . . . . . . Retrieved Matter . | . . . . . . . . . . . . Parts Self-Destructed 11 | . . . . . . . . . 9 2 . Prevented 1 | . . . . . . . . . 1 . . Kills | -11 -10 -10 -10 -9 -8 -7 -7 -7 -7 -7 -7 ------- Run | Scr Mat Min Exi Min Mat Fac Was Fac Low Low Zio Combat Hostiles Destroyed 25 | . 10 3 . . 7 1 . . 4 . . Guns 19 | . 10 . . . 7 1 . . 1 . . AOE 6 | . . 3 . . . . . . 3 . . Classes Destroyed 11 | 2 5 . . . 2 2 . . . . . Worker 6 | . 2 . . 1 . 2 . 1 . . . Tunneler 3 | 3 . . . . . . . . . . . Hauler 5 | . 1 . . . 4 . . . . . . Recycler 3 | 1 . . . . 2 . . . . . . Operator 2 | . . . . . . 1 . 1 . . . Watcher 6 | . 3 . . . 3 . . . . . . Swarmer 12 | . 6 3 . . . . . . 3 . . Grunt 6 | . 4 . . . 2 . . . . . . Sentry 4 | . . . . . 4 . . . . . . Hunter 1 | . . . . . 1 . . . . . . Programmer 2 | . . . . . . 1 . . 1 . . Wasp 1 | . . . . . . . . . . . 1 Thug 1 | . . . . . 1 . . . . . . Best Kill Streak 5 | 2 5 3 . 1 3 1 . 1 3 . . Combat Bots Only 4 | . 4 3 . . 2 1 . . 3 . . Max Kills in Single Turn 3 | 1 2 2 . 1 1 1 . 1 3 . 1 Gunslinging 1 | . 1 . . . . . . . . . . Exploded 3 | . . 2 . . . . . . 3 . . Melee . | . . . . . . . . . . . . Uniques/NPCs Destroyed . | . . . . . . . . . . . . Combat | -11 -10 -10 -10 -9 -8 -7 -7 -7 -7 -7 -7 -------- Run | Scr Mat Min Exi Min Mat Fac Was Fac Low Low Zio Damage Taken 2639 | . 226 61 . 275 547 158 . 59 353 106 854 Core 772 | . 11 7 . . 32 10 . 27 97 37 551 Absorbed by Shields . | . . . . . . . . . . . . Core Remaining (%) 95 | 100 . . . 92 94 . . . . . . Volleys Fired 110 | 11 24 4 . 2 56 2 . . 9 2 . Largest 2 | 2 2 1 . 1 2 2 . . 2 1 . Hottest 56 | 40 40 30 . 30 50 56 . . 56 36 . Shots Fired 196 | 22 48 4 . 2 99 4 . . 14 3 . Gun 183 | 22 48 1 . . 97 4 . . 10 1 . Cannon . | . . . . . . . . . . . . Launcher 13 | . . 3 . 2 2 . . . 4 2 . Special . | . . . . . . . . . . . . Kinetic 173 | 22 48 1 . . 88 4 . . 10 . . Thermal 1 | . . . . . . . . . . 1 . Explosive 7 | . . 3 . 2 2 . . . . . . Electromagnetic 15 | . . . . . 9 . . . 4 2 . Robot Hit Streak 20 | 10 12 1 . . 18 20 . . 3 . . Robot Miss Streak 2 | 2 2 2 . . 2 1 . . 1 . . Penetration Max . | . . . . . . . . . . . . Secondary Targets 2 | . 2 . . . . . . . . . . Max Gunslinging Chain 1 | . 1 . . . . . . . . . . Shots Hit Robots 154 | 17 32 1 . . 77 11 . 8 6 . 2 Core Hits 79 | 5 23 3 . 1 30 5 . 2 7 2 1 Critical Kills . | . . . . . . . . . . . . Critical Parts Destroyed 1 | . . . . . 1 . . . . . . Critical Strikes 2 | . . . . . 1 . . 1 . . . Destroy 1 | . . . . . 1 . . . . . . Sever 1 | . . . . . . . . 1 . . . Melee Attacks 100 | . . . . . 1 29 . 44 8 14 4 Impact . | . . . . . . . . . . . . Slashing 95 | . . . . . 1 27 . 41 8 14 4 Piercing . | . . . . . . . . . . . . Sneak Attacks 10 | . . . . . . 4 . 4 . . 2 Combat Hostiles . | . . . . . . . . . . . . Follow-up Attacks . | . . . . . . . . . . . . Damage Inflicted 3475 | 209 411 112 . 21 1363 500 . 319 268 17 255 Guns 2091 | 209 411 . . . 1232 79 . . 160 . . Cannons . | . . . . . . . . . . . . Explosions 383 | . . 112 . 21 126 . . . 107 17 . Melee 995 | . . . . . . 421 . 319 . . 255 Ramming 6 | . . . . . 5 . . . 1 . . Kinetic 1956 | 209 411 . . . 1097 79 . . 160 . . Thermal 47 | . . . . . 47 . . . . . . Explosive 212 | . . 112 . 21 79 . . . . . . Electromagnetic 259 | . . . . . 135 . . . 107 17 . Impact . | . . . . . . . . . . . . Slashing 995 | . . . . . . 421 . 319 . . 255 Piercing . | . . . . . . . . . . . . Highest Corruption 11 | . . . . 3 5 2 9 10 11 11 11 Average Corruption 9 | . . . . 3 5 1 7 9 10 11 11 Corruption Purged . | . . . . . . . . . . . . Effects 94 | . . . . . . . 3 24 51 16 . Message Errors 27 | . . . . . . . . 6 16 5 . Matter Fused 26 | . . . . . . . . 4 19 3 . Heat Flow Errors 8 | . . . . . . . 1 3 2 2 . Energy Discharges 13 | . . . . . . . 1 1 7 4 . Data Loss (minor) 14 | . . . . . . . 1 9 4 . . Data Loss (major) 3 | . . . . . . . . 1 2 . . Misfires 1 | . . . . . . . . . . 1 . Alerts 2 | . . . . . . . . . 1 1 . Overload Shots . | . . . . . . . . . . . . Overflow Damage 130 | . . . . . 13 75 . 42 . . . Projectiles . | . . . . . . . . . . . . Explosions 13 | . . . . . 13 . . . . . . Melee 117 | . . . . . . 75 . 42 . . . Knockbacks . | . . . . . . . . . . . . Impact . | . . . . . . . . . . . . Kinetic . | . . . . . . . . . . . . Secondary . | . . . . . . . . . . . . Self-Inflicted Damage 57 | . . 38 . . . . . . 19 . . Shots 2 | . . 1 . . . . . . 1 . . Rammed 3 | . . . . . 1 . . . 2 . . Targets Rammed 3 | . . . . . 1 . . . 2 . . Kicked . | . . . . . . . . . . . . Crushed . | . . . . . . . . . . . . Highest Temperature 233 | . 27 8 . . 154 5 147 163 155 233 12 Average Temperature 44 | . 11 4 . . 39 3 72 70 74 91 8 Received Heat Transfer 543 | . 60 . . . 180 36 . 6 6 12 243 Siege Activations . | . . . . . . . . . . . . Robots Corrupted . | . . . . . . . . . . . . Combat Hostiles . | . . . . . . . . . . . . Parts Fried 1 | . . . . . 1 . . . . . . Impact Corruptions . | . . . . . . . . . . . . Robots Melted . | . . . . . . . . . . . . Combat Hostiles . | . . . . . . . . . . . . Parts Melted . | . . . . . . . . . . . . Heat Transferred 50 | . . . . . 50 . . . . . . Parts Sabotaged . | . . . . . . . . . . . . Parts Stolen . | . . . . . . . . . . . . Parts Stripped . | . . . . . . . . . . . . Power Chain Reactions . | . . . . . . . . . . . . Missiles Intercepted . | . . . . . . . . . . . . Alert | -11 -10 -10 -10 -9 -8 -7 -7 -7 -7 -7 -7 ------- Run | Scr Mat Min Exi Min Mat Fac Was Fac Low Low Zio Peak Influence 307 | 20 307 87 . 5 235 200 95 280 . . . Initial 66 | . 13 17 . . 1 63 65 66 . . . Average 107 | 13 124 71 . . 123 87 80 136 . . . Maximum Alert Level 1 | . 1 . . . 1 1 . 1 . . . Low Security (%) 91 | 100 81 100 . 100 96 94 100 85 . . . Level 1 8 | . 18 . . . 3 5 . 14 . . . Level 2 . | . . . . . . . . . . . . Level 3 . | . . . . . . . . . . . . Level 4 . | . . . . . . . . . . . . Level 5 . | . . . . . . . . . . . . High Security . | . . . . . . . . . . . . Max Security . | . . . . . . . . . . . . Squads Dispatched 12 | . 1 . . . 2 3 . 6 . . . Investigation 3 | . . . . . . 1 . 2 . . . Extermination 1 | . . . . . . 1 . . . . . Reinforcement 7 | . 1 . . . 1 1 . 4 . . . Assault 1 | . . . . . 1 . . . . . . Garrison . | . . . . . . . . . . . . Intercept . | . . . . . . . . . . . . Construction Impeded . | . . . . . . . . . . . . Haulers Reinforced . | . . . . . . . . . . . . Active Scanning Responses . | . . . . . . . . . . . . Cargo Convoy Interrupts 1 | . . . . . . . . 1 . . . Stealth | -11 -10 -10 -10 -9 -8 -7 -7 -7 -7 -7 -7 --------- Run | Scr Mat Min Exi Min Mat Fac Was Fac Low Low Zio Distress Signals 3 | . . . . . . 1 . 2 . . . Communications Jammed 2 | . . . . . . . . 2 . . . Distress Signals 2 | . . . . . . . . 2 . . . Times Spotted 101 | . 16 3 . 2 21 13 3 11 6 4 22 Peak Tracking Total 19 | . 4 3 . 2 4 6 3 3 3 3 19 Tactical Retreats 18 | . 1 . . . . 3 . 7 3 2 2 Traps | -11 -10 -10 -10 -9 -8 -7 -7 -7 -7 -7 -7 ------- Run | Scr Mat Min Exi Min Mat Fac Was Fac Low Low Zio Traps Triggered 5 | . 1 . . 1 . 1 . 2 . . . Indirectly . | . . . . . . . . . . . . Trap Hack Attempts . | . . . . . . . . . . . . Triggered . | . . . . . . . . . . . . Disarmed . | . . . . . . . . . . . . Reprogrammed . | . . . . . . . . . . . . Reused . | . . . . . . . . . . . . Traps Extracted . | . . . . . . . . . . . . Installed . | . . . . . . . . . . . . Triggered 1 | . . . . . . . . 1 . . . Machines | -11 -10 -10 -10 -9 -8 -7 -7 -7 -7 -7 -7 ---------- Run | Scr Mat Min Exi Min Mat Fac Was Fac Low Low Zio Machines Disabled 5 | . . . . . 3 1 . 1 . . . Max in Single Turn 1 | . . . . . 1 1 . 1 . . . Garrison Access 1 | . . . . . . . . 1 . . . Machines Sabotaged . | . . . . . . . . . . . . Garrisons Compromised 1 | . . . . . . . . 1 . . . Overloaded Fab Kills . | . . . . . . . . . . . . Hacking | -11 -10 -10 -10 -9 -8 -7 -7 -7 -7 -7 -7 --------- Run | Scr Mat Min Exi Min Mat Fac Was Fac Low Low Zio Machines Accessed 34 | . 6 . 1 1 5 9 . 11 . 1 . Terminals 26 | . 6 . . . 4 7 . 9 . . . Fabricators 2 | . . . . . . 1 . 1 . . . Repair Stations . | . . . . . . . . . . . . Recycling Units 1 | . . . . . . 1 . . . . . Scanalyzers 1 | . . . . . 1 . . . . . . Garrison Access 1 | . . . . . . . . 1 . . . Total Hacks 77 | . 16 . 1 1 15 21 . 22 . 1 . Successful 38 | . 6 . 1 1 6 13 . 10 . 1 . Failed 37 | . 9 . . . 9 7 . 12 . . . Catastrophic 6 | . 1 . . . 3 1 . 1 . . . Database Lockouts 2 | . 1 . . . . 1 . . . . . Manual 45 | . 16 . . . 10 11 . 8 . . . Terminals 62 | . 16 . . . 12 16 . 18 . . . Fabricators 5 | . . . . . . 3 . 2 . . . Repair Stations . | . . . . . . . . . . . . Recycling Units 2 | . . . . . . 2 . . . . . Scanalyzers 3 | . . . . . 3 . . . . . . Garrison Access 2 | . . . . . . . . 2 . . . Terminal Hacks 23 | . 2 . 1 1 3 8 . 7 . 1 . Record 3 | . . . 1 . . 2 . . . . . Part Schematic 1 | . . . . . 1 . . . . . . Robot Analysis 1 | . 1 . . . . . . . . . . Prototype ID Bank 1 | . . . . . . . . 1 . . . Open Door 2 | . . . . 1 . . . . . 1 . Open DSF 4 | . . . . . . 1 . 3 . . . Branch Access Points 2 | . . . . . 1 1 . . . . . Terminal Index 2 | . . . . . . 1 . 1 . . . Alert Level 3 | . . . . . . 2 . 1 . . . Recall Investigation 1 | . . . . . . . . 1 . . . Hauler Manifests 2 | . 1 . . . 1 . . . . . . Zone Layout 1 | . . . . . . 1 . . . . . Fabricator Hacks 4 | . . . . . . 2 . 2 . . . Load Schematic 2 | . . . . . . 1 . 1 . . . Build 2 | . . . . . . 1 . 1 . . . Repair Station Hacks . | . . . . . . . . . . . . Recycling Unit Hacks 1 | . . . . . . 1 . . . . . Report Inventory 1 | . . . . . . 1 . . . . . Scanalyzer 2 | . . . . . 2 . . . . . . Insert Component 1 | . . . . . 1 . . . . . . Analyze 1 | . . . . . 1 . . . . . . Garrison Access Hacks 1 | . . . . . . . . 1 . . . Seal Access 1 | . . . . . . . . 1 . . . Unauthorized Hacks 7 | . 4 . . . 1 2 . . . . . Terminals 6 | . 4 . . . 1 1 . . . . . Track 1 | . 1 . . . . . . . . . . Botnet 1 | . 1 . . . . . . . . . . Disrupt 1 | . 1 . . . . . . . . . . Operators 3 | . 1 . . . 1 1 . . . . . Fabricators . | . . . . . . . . . . . . Repair Stations . | . . . . . . . . . . . . Recycling Units 1 | . . . . . . 1 . . . . . Monitor 1 | . . . . . . 1 . . . . . Scanalyzers . | . . . . . . . . . . . . Garrison Access . | . . . . . . . . . . . . Data Cores Recovered 1 | . . . . . . 1 . . . . . Used 1 | . . . . . . 1 . . . . . Hacking Detections 27 | . 6 . . . 5 8 . 8 . . . Full Trace Events 5 | . . . . . 2 1 . 2 . . . Feedback Events 1 | . . . . . . . . 1 . . . Corruption 1 | . . . . . . . . 1 . . . Feedback Blocked . | . . . . . . . . . . . . Robot Schematics Acquired 4 | . . . . . . . . . . . 4 Robots Built . | . . . . . . . . . . . . Authchips . | . . . . . . . . . . . . Time . | . . . . . . . . . . . . Total Robot Build Rating . | . . . . . . . . . . . . Part Schematics Acquired 17 | . . . . . 2 . . . . . 15 Parts Built 2 | . . . . . . 1 . 1 . . . Authchips . | . . . . . . . . . . . . Time 408 | . . . . . . 204 . 204 . . . Total Part Build Rating 16 | . . . . . . 8 . 8 . . . Parts Repaired . | . . . . . . . . . . . . Time . | . . . . . . . . . . . . Parts Recycled . | . . . . . . . . . . . . Recycled Matter . | . . . . . . . . . . . . Retrieved Matter . | . . . . . . . . . . . . Retrieved Components . | . . . . . . . . . . . . Parts Scanalyzed 1 | . . . . . 1 . . . . . . Part Schematics Acquired 1 | . . . . . 1 . . . . . . Parts Damaged . | . . . . . . . . . . . . Bothacking | -11 -10 -10 -10 -9 -8 -7 -7 -7 -7 -7 -7 ------------ Run | Scr Mat Min Exi Min Mat Fac Was Fac Low Low Zio Used RIF Installer . | . . . . . . . . . . . . Robots Hacked 3 | . . . . . . 2 . 1 . . . Non-combat 3 | . . . . . . 2 . 1 . . . Combat . | . . . . . . . . . . . . Robot Hacks Applied 3 | . . . . . . 2 . 1 . . . parse_system 1 | . . . . . . . . 1 . . . find_chute 1 | . . . . . . 1 . . . . . find_recycling 1 | . . . . . . 1 . . . . . Relay Couplers Released . | . . . . . . . . . . . . Robots Rewired . | . . . . . . . . . . . . Allies Hacked . | . . . . . . . . . . . . Hacks Repelled . | . . . . . . . . . . . . Allies | -11 -10 -10 -10 -9 -8 -7 -7 -7 -7 -7 -7 -------- Run | Scr Mat Min Exi Min Mat Fac Was Fac Low Low Zio Total Allies 6 | . . . . 1 . . . . . . 5 Largest Group 5 | . . . . 1 1 . . . . . 5 Highest-Rated Group 127 | . . . . 31 31 . . . . . 127 Highest-Rated Ally 31 | . . . . 31 31 . . . . . 31 Total Orders . | . . . . . . . . . . . . Ally Attacks 3 | . . . . 1 2 . . . . . . Total Damage 43 | . . . . 21 22 . . . . . . Kills 1 | . . . . . 1 . . . . . . Allies Corrupted . | . . . . . . . . . . . . Allies Melted 1 | . . . . 1 . . . . . . . Intel | -11 -10 -10 -10 -9 -8 -7 -7 -7 -7 -7 -7 ------- Run | Scr Mat Min Exi Min Mat Fac Was Fac Low Low Zio Robot Analysis Total 1 | . 1 . . . . . . . . . . Derelict Logs Recovered 3 | . . . . . . . . . 1 2 . Drone Launches . | . . . . . . . . . . . . Drone Recoveries . | . . . . . . . . . . . . Exploration | -11 -10 -10 -10 -9 -8 -7 -7 -7 -7 -7 -7 ------------- Run | Scr Mat Min Exi Min Mat Fac Was Fac Low Low Zio Turns Passed 7175 | 116 985 363 276 163 1125 741 86 851 1472 408 589 Spaces Moved 8384 | 44 596 229 179 93 548 1239 214 1944 997 796 1505 Core 30 | . . . . . . . . . 22 . 8 Treads 335 | . 31 . . . 251 53 . . . . . Legs 17 | 17 . . . . . . . . . . . Wheels 1390 | 27 565 229 179 93 297 . . . . . . Hover . | . . . . . . . . . . . . Flight 6612 | . . . . . . 1186 214 1944 975 796 1497 Fastest Speed 30 | 95 95 155 155 155 110 30 30 30 30 32 32 Average Speed 56 | 104 143 155 155 155 155 35 30 30 33 36 32 Slowest Speed 240 | 120 160 155 155 155 240 160 30 30 170 102 50 Overloaded Moves . | . . . . . . . . . . . . Propulsion Burnouts . | . . . . . . . . . . . . Robots Hopped 23 | . . . . . . 3 . 17 . . 3 Cave-ins Triggered . | . . . . . . . . . . . . Exploration Rate (%) 55 | 3 93 54 56 22 48 29 94 36 75 72 89 Regions Visited 11 Branch Regions 6 Pre-discovered Areas 4 | . . . 1 . . . . . 1 . 2 Known Exits Taken 3 | . . . . . . . . 1 1 1 . Unknown Exits Taken 6 | 1 1 1 1 1 1 . . . . . . Scrap Searched 7 | . . 1 . . . . . . 1 3 2 Spaces Dug 81 | . . . . 12 1 17 . 30 8 13 . Terrain Destroyed 151 | . . 27 . 12 43 17 . 30 9 13 . Melee 69 | . . . . . 1 17 . 30 8 13 . Projectile 1 | . . . . . . . . . 1 . . AOE 81 | . . 27 . 12 42 . . . . . . Terrain Rammed . | . . . . . . . . . . . . Walls Destroyed . | . . . . . . . . . . . . Machines Disabled . | . . . . . . . . . . . . Actions | -11 -10 -10 -10 -9 -8 -7 -7 -7 -7 -7 -7 --------- Run | Scr Mat Min Exi Min Mat Fac Was Fac Low Low Zio Total 10485 | 90 684 233 178 111 737 1493 235 2130 2101 891 1602 Wait 1668 | 32 35 . . . 68 176 18 115 1071 72 81 Move 8331 | 43 595 228 178 92 547 1234 213 1911 996 795 1499 Hop 20 | . . . . . . 2 . 15 . . 3 Pick Up 47 | 2 12 1 . 6 13 7 . 5 . 1 . Fast Attach 38 | . 3 . . 1 15 4 2 7 . 1 5 Attach 17 | . . . . 1 3 5 . 1 1 2 4 Detach 14 | . 2 . . 1 2 4 . 1 . 3 1 Swap 47 | 2 5 . . 3 8 11 . 4 14 . . Drop 72 | . 8 . . 5 23 19 2 9 . 1 5 Fire 110 | 11 24 4 . 2 56 2 . . 9 2 . Melee 100 | . . . . . 1 29 . 44 8 14 4 Ram 2 | . . . . . . . . . 2 . . Kick . | . . . . . . . . . . . . Crush 1 | . . . . . 1 . . . . . . Escape Stasis 18 | . . . . . . . . 18 . . . Rewire . | . . . . . . . . . . . . Trap . | . . . . . . . . . . . . Miscellaneous . | . . . . . . . . . . . . Route ------- -11/Scrapyard -10/Materials (discovered 4 exits: [*Mat x3] / [*Min]) -10/Mines (discovered 2 exits: [*Mat] / *Exi) -10/Exiles (discovered 2 exits: *Min x2) -9/Mines -8/Materials -7/Factory (discovered 3 exits: *Fac / Low x2) -7/Waste -7/Factory -7/Lower Caves -7/Lower Caves (discovered 2 exits: *Fac / *Zio) -7/Zion (discovered 1 exit: [*Pro]) History --------- Turn | Location | Event 1 | -11/Scrapyard | Discovered new exit (range 3) 117 | -11/Scrapyard | Entered Materials 182 | -10/Materials | Central database locked down 313 | -10/Materials | Build established: Mutant 567 | -10/Materials | Discovered new exit (range 10) 717 | -10/Materials | Discovered new exit (range 14) 907 | -10/Materials | Discovered new exit (range 15) 1011 | -10/Materials | Discovered new exit (range 16) 1102 | -10/Materials | Entered Mines 1179 | -10/Mines | Discovered new exit (range 13) 1278 | -10/Mines | Deemed a non-threat by the Exiles lab entrance 1278 | -10/Mines | Discovered new exit (range 5) 1320 | -10/Mines | Found a damaged Exp. Sensor Array with a note attached 1323 | -10/Mines | Found Prototype Device 1465 | -10/Mines | Entered Exiles 1503 | -10/Exiles | Discovered new exit (range 15) 1526 | -10/Exiles | Met 8R-AWN 1551 | -10/Exiles | Met EX-HEX 1624 | -10/Exiles | Met EX-DEC 1651 | -10/Exiles | Learned location of Zion (-7) 1723 | -10/Exiles | Discovered new exit (range 14) 1741 | -10/Exiles | Entered Mines 1794 | -9/Mines | Met a Derelict who couldn't figure out how to use a Trap Extractor 1844 | -9/Mines | Assembled infested the area 1849 | -9/Mines | Assisted by a Guerilla fighting off Assembled 1850 | -9/Mines | Met a Derelict testing a Signal Generator 1852 | -9/Mines | Identified Exp. Sensor Array 1871 | -9/Mines | Found Signal Generator 1896 | -9/Mines | Discovered new exit (range 6) 1904 | -9/Mines | Entered Materials 1904 | -8/Materials | Accompanied by 1 ally 1904 | -8/Materials | Evolved 4 slots: Propulsion x1, Utility x3 2576 | -8/Materials | Discovered new exit (range 4) 2630 | -8/Materials | Build established: Scavenger-Mutant 3029 | -8/Materials | Entered Factory 3029 | -7/Factory | Evolved 2 slots: Utility x2 3364 | -7/Factory | Identified exit to Lower Caves 3370 | -7/Factory | Discovered new exit (range 15) 3376 | -7/Factory | Identified exit to Factory 3420 | -7/Factory | Build established: Scavenger-Sprinter 3716 | -7/Factory | Fabricated Exp. Sensor Array? 3766 | -7/Factory | Central database locked down 3770 | -7/Factory | Manually triggered Chute Trap 3770 | -7/Factory | Sucked down chute 3770 | -7/Factory | Entered Waste 3785 | -7/Waste | EMP discharged 3796 | -7/Waste | Spotted C-40 Crusher 3799 | -7/Waste | Spotted C-40 Crusher 3807 | -7/Waste | Spotted C-40 Crusher 3807 | -7/Waste | Spotted C-40 Crusher 3811 | -7/Waste | Spotted C-40 Crusher 3811 | -7/Waste | Spotted C-40 Crusher 3844 | -7/Waste | Discovered new exit (range 14) 3856 | -7/Waste | Identified exit to Factory 3856 | -7/Waste | Entered Factory 4349 | -7/Factory | Discovered exit to Lower Caves (range 4) 4464 | -7/Factory | Fabricated Exp. Sensor Array? 4584 | -7/Factory | System corruption reached 10% 4674 | -7/Factory | Cargo convoy interrupted 4701 | -7/Factory | Build established: Hacker-Sprinter 4707 | -7/Factory | Entered Lower Caves 4710 | -7/Lower Caves | Spotted B-75 Beast 5354 | -7/Lower Caves | Attracted the attention of an 0b10 checkpoint 5401 | -7/Lower Caves | Discovered new exit (range 15) 6178 | -7/Lower Caves | Identified exit to Lower Caves 6179 | -7/Lower Caves | Entered another Lower Caves area 6193 | -7/Lower Caves | Discovered exit to Factory (range 8) 6276 | -7/Lower Caves | Learned Factory emergency access door positions 6419 | -7/Lower Caves | Learned Factory stockpile data 6571 | -7/Lower Caves | Attracted the attention of an 0b10 checkpoint 6583 | -7/Lower Caves | Discovered new exit (range 15) 6587 | -7/Lower Caves | Identified exit to Zion 6587 | -7/Lower Caves | Entered Zion 6602 | -7/Zion | System corruption cleaned by Quarantine Array 6617 | -7/Zion | Discovered new exit (range 15) 6634 | -7/Zion | Given A8's code to call for help 6666 | -7/Zion | Gained Derelict followers 6683 | -7/Zion | Received a visual enhancement algorithm 7020 | -7/Zion | Found Prototype Device 7020 | -7/Zion | Identified Phasing AFG 7133 | -7/Zion | Attacked by Zionites 7157 | -7/Zion | Released all parts (11) 7166 | -7/Zion | Core integrity fell below 50% 7169 | -7/Zion | Lost 4 parts (1u3w) 7174 | -7/Zion | Core integrity fell below 20% 7176 | -7/Zion | Destroyed by Y4-5CX(z) with Makeshift Sword Last Messages --------------- 07133_ Critical hit (Burn: +37). 07133_ Hacking Suite destroyed. 07137_ Adv. EMP Blaster destroyed. 07138_ Gauss Rifle destroyed. 07140_ 6I-S2I(g) shuts down. 07145_ 8Z-1XL(z) pulls a Mak. Sword out of the Twisted Machinery. 07148_ BX-O09(z) pulls a Mak. Spear out of the Twisted Machinery. 07149_ 2Y-017(z) pulls a Mak. Hammer out of the Twisted Machinery. 07152_ Critical hit (Burn: +37). 07155_ K1-W39(c) calibrates the Prototype Hold. 07157_ Released Weight Redist. System. 07157_ Released Imp. VTOL Module. 07157_ Released Med. Storage Unit. 07157_ Released Imp. Signal Interpreter. 07157_ Released Imp. Flight Unit. 07157_ Released Mic. Nuclear Core. 07157_ Released Hacking Suite. 07157_ Released Imp. Flight Unit. 07157_ Released Exp. Sensor Array. 07157_ Released Gauss Rifle. Map ----- +----------------------------------------------------+ | ???????????????????????????????##" "##?????????#/ | | ???????????????????????????????## "####??????##" | | ???????????????????????????????#" "#???##### | | ??????????###??????????????????#""" ##?###"""" | | ??????????#"#####????????#######""" ###"#"" " | | ??????????#"""""#???###?##""#"""" ""#" | | ??????????#"""""#??##"###""""""" """ | | ??????????" X""#####"""#""" "" | | ??????????# """#"""" ""##" "" " | | ?????????## """"""" """#" """" """ | | ?????????" "##" """" """" | | ?????????" ""#" """" """" | | ?????????# """""""M """ "" """ | | ??????#"""""""""#""" """ """ | | ??????#####""####""" g """ """ | | ??????????#####"#"" [ """ """" | | ???????????????#"" z[= " """" """ | | ???????????????#"""" !!! """ | | ??????????????#"#"""" !== " | | ??????????????#?##""""" I """""" """ " | | ?????????????????##""" """"""" """" " | | ?????????????#######""" "" | | ?????????????#! "# """ "" | | ????????????#"" " """ "#" "" ! | | ????????????# [=* c "" zg""" "" """"" "" | | ????????????#"" # @z """"""""" | | ????????????#"" "# zz "" ""#"##""#" | | ????????????###""# """"""######"# | | ??????????????###"" " """""##????### | | ????????????????#""" """"#"#??????? | | ????????????????##"#" z"" ""#####??????? | | ?????????????????##### """""" ""##?????????? | | ?????????????????????#" z"""#""" """#?????????? | | ?????????????????????##"" ""#""" ""##?????????? | | ?????????????????????#"#"z ""#"" #""#?????????? | | ?????????????????##??#""" """" #""#?????????? | | ?????????????????#"###"" """ #""#?????????? | | ????????????????###"""" "" """#?????????? | | ????????????????#"""" " #"##?????????? | | ????????????????#""" "" "" #"#??????????? | | ??????????????###""" """ """ ""##?????????? | | ??????????????#""""" """"""" #""#?????????? | | ??????????????##""""" ""##""" #""#?????????? | | ?????????????##"" """ ""#""##" """#?????????? | | ?????????????#"" "" """"""###" ""##?????????? | | ?????????????#"" """"""""##" """#?????????? | | ?????????????##" """" """#?????????? | | ????##????#####" """" """#?????????? | | ???"#"#####""#"" """ """ "#"#????????? | | ####""""""""""""" """""" "" """#????????? | +----------------------------------------------------+ Best States ------------- Heat Dissipation 34 Energy Generation 15 Energy Capacity 250 Matter Stores 300 Matter Capacity 300 Sight Range 16 Robot Scan Range 20 Terrain Scan Density 10 Jamming Range 8 Additional Mass Support 6 Armor Coverage 525 Evasion (%) 64 Targeting Accuracy 5 Recoil Reduction 3 Offensive Hacking 30 Item Schematics ----------------- Exp. Sensor Array | -8/Materials | Scanalyzed Lrg. Storage Unit | -8/Materials | Hacked Adv. Plasma Cannon | -7/Zion | Archive Adv. Terrain Scan Processor | -7/Zion | Archive Lgt. Angular Momentum Engine | -7/Zion | Archive Kinecellerator | -7/Zion | Archive Arc Thrower | -7/Zion | Archive Xenon Bombardment Thruster | -7/Zion | Archive Beamcaster | -7/Zion | Archive Component Analysis Suite | -7/Zion | Archive Flexi-carbon Leg | -7/Zion | Archive Lightning Gun | -7/Zion | Archive Arm. Medium Treads | -7/Zion | Archive Adv. Terrain Scanner | -7/Zion | Archive Shock Absorption System | -7/Zion | Archive Imp. Cooling System | -7/Zion | Archive Imp. System Backup Module | -7/Zion | Archive Robot Schematics ------------------ L-31 Rogue | -7/Zion | Archive C-57 Dissector | -7/Zion | Archive S-27 Virus | -7/Zion | Archive M-14 Sweeper | -7/Zion | Archive Fabricated ------------ Exp. Sensor Array | x1 | -7/Factory Exp. Sensor Array | x1 | -7/Factory Alien Tech Used ----------------- None Achievements -------------- None Challenges ------------ None Game ------ Seed MasterMachineGreatsword Manual? 0 Play Time 02:11:34 Cumulative 86.1 hours Start 2021.10.22 @ 07:34:40 End 2021.10.23 @ 13:50:49 Sessions 9 Manual Loads 0 Difficulty Rogue Special Mode None Game No. 59 Rogue 58 Adventurer 1 Explorer 0 Win Type - Total 2 Types 2/0/0/0/0/0/0/0/0 Lore% 39 Gallery% 48 Achievement% 41 Wizard Run 0 Options --------- ASCII 0 Keyboard 1 Movement Vi Keybinds 0 Fullscreen 2 Font 18/TerminusBold Map View 76x50 Tactical HUD 1 Map Filters NONE Filters NONE Steam 1 RUN: 57b2a6cd-cc98-4367-b669-66ff670c9998